bitfinex/quotes_ETHUSD_20250123
["timestamp","ask_amount","ask_price","bid_price","bid_amount"]
[1737665901454,3.08024,3246.5,3246.4,0.7915]
[1737665901652,3.08018,3246.6,3246.4,0.7915]
[1737665901857,3.0799,3246.9,3246.4,0.7915]
[1737665902055,3.07957,3247.3,3246.4,0.7915]
[1737665902304,3.07938,3247.4,3246.4,0.7915]
[1737665902446,3.07867,3248.2,3245.4,3.0]
[1737665902447,3.07882,3248.0,3246.5,35.55]
[1737665902642,3.07894,3247.9,3246.7,3.7915]
[1737665902844,0.7971,3248.9,3246.7,3.7915]
[1737665903077,3.07844,3248.4,3246.8,0.7915]
[1737665903287,0.7971,3250.5,3247.6,0.7915]
[1737665903471,3.07773,3249.2,3248.4,0.7915]
[1737665903680,3.07704,3249.9,3248.6,3.0]
[1737665903996,0.2887921,3251.2,3249.0,0.55]
[1737665904146,3.07589,3251.1,3249.2,0.7915]
[1737665904346,3.07601,3251.0,3250.0,3.0]
[1737665904559,0.2887921,3251.2,3250.1,0.7915]
[1737665904889,0.2887921,3251.2,3250.2,0.37915]
[1737665905060,3.07559,3251.5,3250.1,0.7915]
[1737665905265,3.07484,3252.2,3250.4,3.0]
[1737665905467,3.07571,3251.3,3250.4,3.0]
[1737665905963,3.07551,3251.5,3250.4,3.0]
[1737665906167,0.1954617,3252.3,3250.0,0.55]
[1737665906371,3.07484,3252.2,3250.3,0.55]
[1737665906569,0.41666667,3251.2,3250.4,0.7716]
[1737665906769,0.1954617,3252.3,3251.2,0.7716]
[1737665907100,3.07486,3252.2,3251.2,0.7716]
[1737665907253,0.1252041,3252.3,3251.2,0.7716]
[1737665907459,3.1999841,3252.3,3251.2,0.7716]
[1737665907658,3.07505,3252.0,3251.3,35.0]
[1737665907862,3.07523,3251.8,3251.3,35.0]
[1737665908196,3.2004341,3251.8,3251.3,3.10202562]
[1737665908360,3.2004341,3251.8,3251.2,0.7716]
[1737665908694,3.0739,3253.2,3251.5,0.55]
[1737665909595,3.0739,3253.2,3251.7,4.17897374]
[1737665909794,3.0738,3253.3,3251.7,3.0]
[1737665909997,3.07437,3252.7,3251.4,0.8151]
[1737665910403,3.07407,3253.1,3251.5,0.55]
[1737665910615,5.08284656,3255.4,3251.5,0.55]
[1737665910757,3.0715,3255.8,3253.2,0.8083]
[1737665910957,0.25,3257.8,3254.3,0.8083]
[1737665911156,13.0,3261.6,3254.4,1.13962343]
[1737665911157,3.07054,3256.8,3254.4,1.13962343]
[1737665911354,3.06997,3257.4,3254.6,1.3488]
[1737665911559,3.06997,3257.4,3254.6,4.3488]
[1737665911560,3.2347228,3256.6,3254.6,4.3488]
[1737665911797,3.2347228,3256.6,3256.1,0.62786693]
[1737665912102,3.07089,3256.4,3254.6,0.7988]
[1737665912254,3.2347128,3256.6,3255.3,3.0]
[1737665912561,0.1639828,3256.6,3255.4,3.10202562]
[1737665912755,3.07078,3256.5,3255.4,3.10202562]
[1737665912985,3.07099,3256.3,3255.4,3.10202562]
[1737665913171,3.07126,3256.0,3254.6,0.7988]
[1737665913357,3.07137,3255.9,3254.6,0.7988]
[1737665913559,3.07137,3255.9,3254.7,35.0]
[1737665913767,3.07148,3255.8,3254.8,3.0]
[1737665913968,3.07078,3256.5,3254.6,0.7988]
[1737665914168,3.07206,3255.2,3254.6,0.7988]
[1737665914377,3.07194,3255.3,3254.6,0.7988]
[1737665915069,5.08284656,3256.4,3254.6,0.7988]
[1737665915273,0.7619,3255.6,3253.3,0.815]
[1737665915591,3.07295,3254.2,3253.3,0.815]
[1737665915775,3.07333,3253.8,3253.3,0.815]
[1737665915971,3.07363,3253.5,3253.3,0.815]
[1737665916370,6.1459,3254.2,3252.6,0.8053]
[1737665916710,3.07413,3253.0,3252.6,0.8053]
[1737665916882,3.07381,3253.3,3252.6,0.8053]
[1737665917090,3.07352,3253.6,3252.6,0.8053]
[1737665917403,0.8286,3254.9,3252.6,0.8053]
[1737665917600,3.07238,3254.8,3252.6,0.8053]
[1737665917803,3.07247,3254.7,3252.6,0.8053]
[1737665918110,3.07363,3253.5,3252.6,0.8053]
[1737665918320,3.07297,3254.2,3252.6,0.8053]
[1737665918614,3.07323,3253.9,3252.6,0.8053]
[1737665918845,3.07266,3254.5,3252.6,0.8053]
[1737665918968,3.07411,3253.0,3252.6,0.8053]
[1737665919169,3.62285,3254.3,3252.6,0.8053]
[1737665919397,3.07435,3252.8,3252.6,0.8053]
[1737665919605,3.435235,3254.2,3252.0,35.0]
[1737665919606,3.0742,3252.9,3252.0,35.0]
[1737665919869,3.07485,3252.2,3252.0,35.0]
[1737665920101,3.07485,3252.2,3251.9,0.7542]
[1737665920305,3.07332,3253.8,3251.9,0.7542]
[1737665920536,3.07448,3252.6,3252.1,3.0]
[1737665920693,3.07458,3252.5,3252.0,35.0]
[1737665921238,3.07493,3252.1,3252.0,35.0]
[1737665921534,3.07361,3253.5,3251.3,0.7983]
[1737665921839,3.07361,3253.5,3251.5,3.0]
[1737665921993,3.07437,3252.7,3251.7,3.0]
[1737665922490,3.07379,3253.4,3251.4,35.0]
[1737665922491,0.55,3253.3,3251.4,35.0]
[1737665922694,3.07456,3252.5,3251.4,35.0]
[1737665922930,3.07514,3251.9,3251.4,35.0]
[1737665923246,3.07488,3252.2,3251.4,35.0]
[1737665923394,3.07436,3252.8,3251.5,3.10202562]
[1737665923590,0.7784,3253.9,3251.6,3.8101]
[1737665923807,3.07446,3252.6,3251.6,3.8101]
[1737665924007,3.07446,3252.6,3251.6,0.8101]
[1737665924233,3.07429,3252.8,3251.6,0.8101]
[1737665924403,3.07429,3252.8,3251.8,3.0]
[1737665924618,0.55,3253.6,3251.8,3.0]
[1737665924811,3.07512,3251.9,3251.8,3.0]
[1737665925339,3.0744,3252.7,3251.8,3.76397284]
[1737665925507,3.0739,3253.2,3251.8,3.76397284]
[1737665925832,3.07462,3252.5,3251.8,3.76397284]
[1737665926033,3.07434,3252.8,3251.8,3.76397284]
[1737665926245,3.07413,3253.0,3251.8,3.76397284]
[1737665926406,3.07413,3253.0,3252.0,3.0]
[1737665926732,3.07418,3252.9,3252.0,3.0]
[1737665927322,3.07392,3253.2,3252.0,3.0]
[1737665927323,0.55,3253.8,3252.0,3.0]
[1737665927504,3.07479,3252.3,3251.7,35.0]
[1737665927704,3.07503,3252.0,3251.7,35.0]
[1737665928038,3.07361,3253.5,3251.6,0.8101]
[1737665928332,3.07531,3251.7,3251.6,0.8101]
[1737665928535,3.07534,3251.7,3251.4,3.0]
[1737665928735,3.07523,3251.8,3251.1,5.215]
[1737665929031,3.07531,3251.7,3251.1,5.215]
[1737665929230,3.07467,3252.4,3251.2,35.0]
[1737665929231,3.07552,3251.5,3251.2,35.0]
[1737665929390,3.07549,3251.6,3251.2,35.0]
[1737665929595,3.07569,3251.3,3251.2,35.0]
[1737665929794,3.07511,3252.0,3251.3,3.0]
[1737665930152,3.07484,3252.2,3251.1,5.215]
[1737665930312,3.07451,3252.6,3251.4,35.0]
[1737665930514,3.07475,3252.3,3251.4,35.0]
[1737665930822,0.7759,3253.2,3251.4,35.0]
[1737665930991,3.07479,3252.3,3251.6,3.0]
[1737665931192,0.7759,3253.2,3251.6,3.0]
[1737665931454,3.07511,3252.0,3251.6,3.0]
[1737665931614,0.7759,3253.2,3251.6,3.0]
[1737665931934,3.0729,3254.3,3251.6,3.0]
[1737665931935,0.7886,3253.8,3251.7,0.8029]
[1737665932103,3.07382,3253.3,3251.8,0.38029]
[1737665932304,3.07616,3250.8,3248.8,2.0]
[1737665932521,3.07616,3250.8,3247.7,13.09836]
[1737665932522,3.07691,3250.1,3249.7,0.7831]
[1737665932695,4.02519832,3250.5,3249.7,0.7831]
[1737665932897,3.07654,3250.4,3249.2,0.7831]
[1737665933139,3.07758,3249.4,3249.2,0.7831]
[1737665933333,3.07644,3250.5,3249.2,0.7831]
[1737665933536,3.07702,3249.9,3249.2,0.7831]
[1737665934097,3.07729,3249.7,3249.2,0.7831]
[1737665934596,0.827,3250.6,3249.2,0.7831]
[1737665934798,3.07739,3249.5,3249.2,0.7831]
[1737665935139,3.07843,3248.4,3248.3,0.7672]
[1737665935346,3.07862,3248.2,3248.1,3.1265034]
[1737665935499,3.0792,3247.6,3247.2,0.7672]
[1737665935699,3.07853,3248.3,3247.2,0.7672]
[1737665935895,3.07829,3248.6,3247.2,0.7672]
[1737665936208,3.07884,3248.0,3247.2,0.7672]
[1737665936411,3.07948,3247.3,3247.2,0.7672]
[1737665936639,3.07963,3247.2,3246.6,35.0]
[1737665936840,3.07908,3247.8,3246.0,0.8187]
[1737665937044,0.8059,3247.9,3246.0,0.8187]
[1737665937338,3.07948,3247.3,3246.0,0.8187]
[1737665937749,0.55,3247.8,3246.0,0.8187]
[1737665938042,0.8059,3247.9,3246.0,1.42532917]
[1737665938043,3.07979,3247.0,3246.0,1.42532917]
[1737665938199,3.08016,3246.6,3246.0,1.42532917]
[1737665938401,3.0799,3246.9,3246.0,0.8187]
[1737665938869,3.07994,3246.9,3246.0,0.8187]
[1737665939140,0.8059,3247.9,3246.0,0.8187]
[1737665939141,3.07996,3246.8,3246.0,0.8187]
[1737665939832,3.08007,3246.7,3246.0,0.8187]
[1737665940405,0.55,3247.8,3245.6,0.60556584]
[1737665940639,3.08026,3246.5,3245.6,0.60556584]
[1737665940954,3.07996,3246.8,3245.6,0.60556584]
[1737665941103,3.07983,3247.0,3245.6,0.60556584]
[1737665941303,3.07929,3247.5,3246.9,35.0]
[1737665941545,3.07953,3247.3,3246.9,35.0]
[1737665941774,3.07932,3247.5,3246.9,35.0]
[1737665941994,3.0791,3247.7,3247.0,3.0]
[1737665942200,3.07907,3247.8,3246.9,0.61511541]
[1737665942341,6.15686,3248.4,3246.0,1.39803464]
[1737665942546,3.07834,3248.5,3246.0,1.39803464]
[1737665942547,3.07902,3247.8,3247.1,3.0]
[1737665942743,3.07834,3248.5,3247.1,3.0]
[1737665943062,3.07947,3247.4,3246.0,1.39803464]
[1737665943269,3.07951,3247.3,3246.0,1.39803464]
[1737665943445,3.07981,3247.0,3246.0,0.773]
[1737665943846,3.07981,3247.0,3245.2,2.214]
[1737665943847,3.07985,3247.0,3245.4,0.8193]
[1737665944101,3.07929,3247.5,3245.6,0.60297822]
[1737665944407,3.0797,3247.1,3245.6,3.60297822]
[1737665944692,3.08002,3246.8,3245.6,0.60297822]
[1737665944906,3.08002,3246.8,3245.7,35.0]
[1737665945249,3.08026,3246.5,3245.8,3.0]
[1737665945428,3.08025,3246.5,3245.9,3.10202562]
[1737665945754,6.04109565,3248.1,3245.4,0.8193]
[1737665945755,9.23844,3247.3,3245.4,0.8193]
[1737665946053,9.23844,3247.3,3243.0,2.15849]
[1737665946054,3.08116,3245.6,3244.7,0.7996]
[1737665946434,3.08092,3245.8,3244.7,0.80279754]
[1737665946760,3.08105,3245.7,3244.7,0.80279754]
[1737665946922,3.08012,3246.7,3245.1,5.03149565]
[1737665947108,6.1599,3246.8,3244.7,0.80279754]
[1737665947451,0.8281,3246.9,3244.7,0.80279754]
[1737665947452,0.8281,3246.9,3246.0,35.0]
[1737665947664,3.08025,3246.5,3246.0,35.0]
[1737665947963,3.08062,3246.1,3245.2,0.61855224]
[1737665948119,3.0808,3246.0,3245.2,0.61855224]
[1737665948318,3.08062,3246.1,3245.4,3.0]
[1737665948519,3.08041,3246.4,3245.2,0.61855224]
[1737665948727,3.08041,3246.4,3244.7,0.00319754]
[1737665948728,0.55,3246.3,3244.7,0.00319754]
[1737665948964,3.08185,3244.8,3244.7,0.00319754]
[1737665950153,3.08099,3245.7,3244.7,0.00319754]
[1737665950351,3.08138,3245.3,3244.7,0.00319754]
[1737665950670,6.16284,3245.3,3244.7,0.00319754]
[1737665950825,3.08138,3245.3,3244.7,0.00319754]
[1737665951026,3.08072,3246.0,3244.7,0.00319754]
[1737665951221,3.08182,3244.9,3244.7,0.00319754]
[1737665951453,3.08185,3244.8,3244.7,0.00319754]
[1737665953040,3.0815,3245.2,3244.7,0.00319754]
[1737665953243,3.08155,3245.2,3244.7,0.00319754]
[1737665953560,3.0817,3245.0,3244.7,0.00319754]
[1737665953861,3.08097,3245.8,3244.7,0.00319754]
[1737665954067,3.08185,3244.8,3244.7,0.00319754]
[1737665955378,3.0828,3243.8,3243.7,0.1639828]
[1737665955667,4.4419,3243.8,3243.7,2.8e-06]
[1737665956011,3.8919,3243.8,3243.7,2.8e-06]
[1737665956529,4.4419,3243.8,3243.7,2.8e-06]
[1737665956688,5.51855496,3243.8,3243.7,2.8e-06]
[1737665956870,3.08452,3242.0,3241.6,0.7527]
[1737665957188,3.08509,3241.4,3240.6,0.7527]
[1737665957593,0.8313,3242.6,3240.6,0.7527]
[1737665957827,3.08429,3242.3,3240.6,0.7527]
[1737665957961,3.08413,3242.4,3240.6,0.7527]
[1737665958317,3.08481,3241.7,3240.6,1.35495104]
[1737665958628,3.085,3241.5,3240.6,0.7527]
[1737665958819,3.08448,3242.1,3240.6,0.7527]
[1737665959111,0.7631,3243.6,3240.9,3.0]
[1737665959310,3.08383,3242.8,3241.4,3.0]
[1737665959812,3.08386,3242.7,3241.5,0.7778]
[1737665960114,3.08352,3243.1,3242.5,35.0]
[1737665960256,3.08224,3244.4,3242.5,35.0]
[1737665960257,3.08326,3243.4,3242.6,3.0]
[1737665960456,3.08242,3244.3,3242.7,3.10202562]
[1737665960457,3.08346,3243.2,3242.7,3.10202562]
[1737665960658,0.7631,3243.7,3241.9,0.62632656]
[1737665961004,3.08378,3242.8,3242.1,3.0]
[1737665961308,0.7631,3243.7,3242.1,3.0]
[1737665961474,3.08395,3242.6,3241.8,0.7778]
[1737665961855,3.0847,3241.9,3241.3,0.7611]
[1737665962072,3.08413,3242.5,3241.3,0.7611]
[1737665962362,3.08471,3241.8,3241.3,0.7611]
[1737665962598,3.0851,3241.4,3240.6,0.7611]
[1737665962911,3.08538,3241.1,3240.6,0.7611]
[1737665963210,3.08584,3240.6,3240.1,0.6286095]
[1737665963373,3.08584,3240.6,3239.3,0.7611]
[1737665963577,3.08584,3240.6,3239.5,0.61188853]
[1737665964506,3.08537,3241.1,3239.5,0.61188853]
[1737665964818,3.08577,3240.7,3239.5,0.61188853]
[1737665964997,3.08508,3241.4,3239.5,0.61188853]
[1737665965182,0.8296,3241.5,3239.7,3.0]
[1737665965509,0.48303029,3244.4,3239.5,0.61188853]
[1737665965510,3.08528,3241.2,3240.4,0.7724]
[1737665965713,3.08537,3241.1,3240.4,0.7724]
[1737665965917,3.08537,3241.1,3240.6,35.0]
[1737665966082,3.08551,3241.0,3240.6,35.0]
[1737665966277,3.08564,3240.9,3240.6,35.0]
[1737665966490,0.7891,3242.0,3240.6,35.0]
[1737665966491,3.08513,3241.4,3240.6,35.0]
[1737665966694,3.08527,3241.3,3240.6,35.0]
[1737665967313,3.08513,3241.4,3240.6,35.0]
[1737665967611,3.08546,3241.1,3240.7,3.0]
[1737665967918,3.08546,3241.1,3240.4,0.7724]
[1737665968216,3.08546,3241.1,3240.6,35.0]
[1737665968411,3.08575,3240.7,3240.6,35.0]
[1737665968619,3.08575,3240.7,3239.8,0.7988]
[1737665968620,3.08584,3240.6,3239.8,0.7988]
[1737665968920,3.08584,3240.6,3239.2,0.7981]
[1737665969125,3.702999,3240.6,3240.5,2.8e-06]
[1737665969285,4.252999,3240.6,3240.5,2.8e-06]
[1737665969615,3.08584,3240.6,3240.5,2.8e-06]
[1737665969782,3.63584,3240.6,3240.5,2.8e-06]
[1737665970199,3.08584,3240.6,3240.5,2.8e-06]
[1737665970401,0.25,3242.4,3240.5,2.8e-06]
[1737665970402,3.0856,3240.9,3240.5,2.8e-06]
[1737665970580,3.08394,3242.6,3240.5,2.8e-06]
[1737665970909,3.08537,3241.1,3241.0,35.0]
[1737665971410,3.08492,3241.6,3241.0,35.0]
[1737665972365,3.08467,3241.9,3241.0,35.0]
[1737665972613,0.7829,3242.5,3241.0,35.0]
[1737665972614,3.08413,3242.4,3241.0,35.0]
[1737665972769,3.08421,3242.4,3241.1,3.0]
[1737665972971,0.7737,3243.2,3241.3,3.0]
[1737665973166,3.08474,3241.8,3241.3,3.0]
[1737665973511,3.08579,3240.7,3240.4,0.8242]
[1737665973880,3.08556,3240.9,3240.4,0.8242]
[1737665974214,3.0856,3240.9,3240.4,0.8242]
[1737665974513,3.08533,3241.2,3240.4,0.8242]
[1737665974811,3.08509,3241.4,3240.4,35.8242]
[1737665975006,3.08461,3241.9,3240.7,3.0]
[1737665975215,3.08438,3242.2,3240.7,3.0]
[1737665975396,3.08419,3242.4,3240.8,0.7672]
[1737665975717,3.08391,3242.7,3241.6,3.0]
[1737665975901,3.08391,3242.7,3241.7,0.774]
[1737665976210,3.08364,3243.0,3241.9,3.0]
[1737665976383,3.08407,3242.5,3241.9,3.0]
[1737665976565,3.08389,3242.7,3241.8,0.3774]
[1737665976765,3.08362,3243.0,3241.8,0.3774]
[1737665976997,3.08423,3242.3,3241.9,35.0]
[1737665977609,3.08398,3242.6,3242.0,3.0]
[1737665977909,3.08391,3242.7,3242.0,3.0]
[1737665978111,3.08366,3242.9,3242.0,3.0]
[1737665978263,0.8059,3244.4,3242.2,3.0]
[1737665978468,3.08244,3244.2,3242.7,3.0]
[1737665978778,3.08174,3245.0,3243.3,0.774]
[1737665978978,0.8059,3245.5,3243.5,3.0]
[1737665979178,3.08227,3244.4,3243.5,3.0]
[1737665979379,3.08166,3245.0,3243.5,3.0]
[1737665979584,3.88716,3245.5,3243.7,3.0]
[1737665979771,3.88716,3245.5,3243.6,3.10202562]
[1737665979772,3.08289,3243.7,3243.6,3.10202562]
[1737665980096,3.08365,3242.9,3241.1,4.05041518]
[1737665980297,1.0591,3244.4,3242.9,0.7647]
[1737665980506,1.0591,3244.4,3242.8,5.7e-06]
[1737665980507,0.8091,3244.4,3242.8,5.7e-06]
[1737665980815,3.08355,3243.1,3242.8,5.7e-06]
[1737665981116,3.08256,3244.1,3242.4,0.7647]
[1737665981324,0.8091,3244.4,3242.4,0.7647]
[1737665981470,3.08202,3244.7,3242.9,0.7647]
[1737665981667,3.08157,3245.1,3243.9,0.7647]
[1737665981914,3.08139,3245.3,3244.1,3.0]
[1737665982127,3.08078,3246.0,3244.1,7.05041518]
[1737665982271,3.08074,3246.0,3244.9,4.05041518]
[1737665982473,3.90772,3247.6,3245.4,4.05041518]
[1737665982670,3.07993,3246.9,3245.5,0.7971]
[1737665982891,3.08054,3246.2,3245.6,0.48475152]
[1737665983092,0.8285,3247.6,3245.5,0.7971]
[1737665983326,3.08034,3246.4,3245.5,0.7971]
[1737665983683,3.08044,3246.3,3245.5,0.7971]
[1737665983936,3.07986,3246.9,3245.5,0.7971]
[1737665984135,3.08089,3245.9,3244.5,0.7532]
[1737665984435,3.08095,3245.8,3244.6,0.48036152]
[1737665984598,3.08081,3245.9,3244.6,0.48036152]
[1737665984790,3.08094,3245.8,3244.6,0.48036152]
[1737665984985,0.769,3246.9,3244.6,0.48036152]
[1737665984986,3.08136,3245.4,3244.6,0.48036152]
[1737665985220,3.08149,3245.2,3244.6,0.48036152]
[1737665985387,3.08195,3244.7,3244.5,0.7532]
[1737665985591,1.269,3246.9,3244.5,0.7532]
[1737665985808,3.08192,3244.8,3243.5,0.8077]
[1737665986018,3.0822,3244.5,3243.5,0.8077]
[1737665986290,3.08232,3244.4,3243.5,0.8077]
[1737665986487,3.08215,3244.5,3243.6,0.48581152]
[1737665986723,3.08173,3245.0,3243.6,0.48581152]
[1737665986900,0.823,3245.7,3244.0,3.8077]
[1737665987206,3.08127,3245.5,3244.5,3.8077]
[1737665987499,3.08075,3246.0,3244.9,4.05041518]
[1737665987712,3.08098,3245.8,3245.0,3.40504152]
[1737665987914,3.08083,3245.9,3245.0,3.40504152]
[1737665988116,0.8115,3247.0,3244.5,0.8077]
[1737665988315,3.0813,3245.4,3244.5,0.8077]
[1737665988647,3.08113,3245.6,3244.5,0.8077]
[1737665988934,3.08061,3246.2,3244.5,0.8077]
[1737665988935,3.0809,3245.8,3244.5,3.8077]
[1737665989096,3.08049,3246.3,3244.5,3.8077]
[1737665989097,3.08052,3246.2,3244.5,3.8077]
[1737665989297,3.08052,3246.2,3242.9,0.15772993]
[1737665989298,3.08005,3246.7,3245.0,0.7781]
[1737665989497,3.07938,3247.4,3245.5,3.0]
[1737665989734,3.08005,3246.7,3246.1,3.0]
[1737665989939,0.7944,3247.5,3245.6,0.7781]
[1737665989940,3.08099,3245.7,3245.6,0.7781]
[1737665990240,3.08127,3245.5,3244.7,0.7781]
[1737665990394,3.08175,3244.9,3244.8,0.15639115]
[1737665990589,3.08185,3244.8,3244.7,0.7781]
[1737665991192,3.08166,3245.0,3244.7,0.7781]
[1737665991393,3.08187,3244.8,3243.9,0.7781]
[1737665991608,3.08137,3245.4,3244.1,3.0]
[1737665991802,3.08132,3245.4,3244.1,3.0]
[1737665992023,3.08132,3245.4,3244.0,4.05041518]
[1737665992024,3.08106,3245.7,3244.7,0.7781]
[1737665992530,3.08077,3246.0,3245.0,0.62863657]
[1737665992692,3.08084,3245.9,3245.0,0.62863657]
[1737665992895,3.08092,3245.8,3244.7,0.7781]
[1737665993093,3.08094,3245.8,3244.7,0.7781]
[1737665993289,0.8211,3247.5,3245.0,4.05041518]
[1737665993492,3.07938,3247.4,3245.2,0.8058]
[1737665993688,3.07948,3247.3,3245.6,3.0]
[1737665993916,3.08017,3246.6,3245.7,0.8058]
[1737665994115,3.07976,3247.0,3245.7,0.8058]
[1737665994322,3.08033,3246.4,3245.7,0.8058]
[1737665994639,3.08024,3246.5,3245.7,0.8058]
[1737665994934,3.08006,3246.7,3245.7,0.8058]
[1737665994935,3.08013,3246.7,3245.7,0.8058]
[1737665995091,3.07987,3246.9,3245.7,0.8058]
[1737665995092,3.07994,3246.9,3245.8,0.38058]
[1737665995439,0.5,3248.7,3245.8,0.38058]
[1737665995440,0.8211,3248.6,3246.7,0.8058]
[1737665995593,3.07769,3249.2,3246.7,0.8058]
[1737665995594,3.07873,3248.1,3247.3,3.0]
[1737665995931,3.07835,3248.5,3247.3,3.0]
[1737665996130,0.8211,3249.2,3247.8,4.05041518]
[1737665996290,3.07797,3248.9,3247.9,3.40504152]
[1737665996488,0.7699,3249.9,3248.0,0.833]
[1737665996692,0.7699,3249.6,3246.9,0.833]
[1737665997094,4.05041518,3249.1,3246.9,3.833]
[1737665997303,3.07787,3249.0,3246.9,0.833]
[1737665997545,3.07918,3247.7,3246.9,0.833]
[1737665997836,3.07909,3247.8,3246.9,0.833]
[1737665998138,3.07881,3248.0,3247.0,0.48834152]
[1737665998334,3.07905,3247.8,3247.0,0.48834152]
[1737665998542,3.07911,3247.7,3247.0,0.48834152]
[1737665998717,0.7699,3249.1,3246.9,0.833]
[1737665998897,3.07835,3248.5,3246.9,3.833]
[1737665999097,3.0792,3247.6,3246.9,0.833]
[1737665999437,3.07869,3248.2,3246.9,0.833]
[1737665999647,6.15574,3249.0,3246.9,0.833]
[1737665999849,3.07855,3248.3,3246.9,0.833]
[1737665999996,3.07899,3247.9,3246.9,3.833]
[1737666000196,0.692564,3248.9,3246.9,0.833]
[1737666000500,0.7699,3249.1,3246.3,3.18788518]
[1737666000715,3.07892,3247.9,3247.0,0.62709572]
[1737666000999,3.07854,3248.3,3246.5,0.55]
[1737666001301,3.07977,3247.0,3246.6,0.62567932]
[1737666001502,3.07977,3247.0,3245.8,6.64899518]
[1737666001724,0.7812,3248.0,3245.9,3.66489952]
[1737666001963,0.7812,3248.0,3245.3,0.49896953]
[1737666001964,0.55,3247.9,3245.3,4.05041518]
[1737666002272,3.08126,3245.5,3244.8,4.42822518]
[1737666002477,3.08148,3245.2,3244.8,0.37781]
[1737666002638,3.08135,3245.4,3244.3,4.05041518]
[1737666002842,0.7861,3247.8,3245.4,3.0]
[1737666003042,0.7861,3247.8,3245.9,3.0]
[1737666003249,0.7861,3247.8,3246.0,0.761]
[1737666003639,3.07981,3247.0,3246.0,0.761]
[1737666003827,3.07862,3248.2,3246.4,3.0]
[1737666004049,3.07862,3248.2,3246.1,0.43844623]
[1737666004050,3.07984,3247.0,3246.1,0.43844623]
[1737666004250,3.07984,3247.0,3246.0,0.761]
[1737666004251,3.07977,3247.0,3246.0,0.761]
[1737666004471,3.07932,3247.5,3246.0,0.761]
[1737666004626,0.8183,3248.8,3246.4,3.0]
[1737666004827,0.8183,3248.8,3246.9,0.7911]
[1737666005236,3.07844,3248.4,3247.0,0.60677346]
[1737666005440,4.30041518,3249.8,3248.0,0.8125]
[1737666005441,1.44506223,3249.8,3248.0,0.8125]
[1737666005654,0.16398,3250.2,3248.3,4.05041518]
[1737666005873,3.07703,3249.9,3248.5,0.8125]
[1737666006178,3.07711,3249.8,3248.5,0.8125]
[1737666006377,0.16398,3250.2,3248.9,3.0]
[1737666006593,0.16398,3250.2,3249.4,3.0]
[1737666006776,0.16398,3250.2,3249.5,0.8073]
[1737666007127,0.16398,3250.2,3250.0,0.8073]
[1737666008734,0.16398,3250.2,3250.1,0.55]
[1737666008974,0.7587,3252.7,3250.3,0.55]
[1737666009129,3.07449,3252.6,3250.9,0.1661]
[1737666009471,3.82664,3253.2,3250.9,0.1661]
[1737666009472,3.07476,3252.3,3251.1,0.62422825]
[1737666009776,3.07507,3252.0,3250.9,0.1661]
[1737666009976,3.07487,3252.2,3250.9,0.1661]
[1737666010275,3.07498,3252.1,3250.9,0.1661]
[1737666010574,3.07507,3252.0,3250.9,0.1661]
[1737666010758,0.7527,3253.2,3250.9,0.1661]
[1737666010962,5.01646518,3253.0,3250.9,0.1661]
[1737666011165,3.07432,3252.8,3250.9,0.1661]
[1737666011472,0.50164652,3252.9,3250.9,0.1661]
[1737666011473,3.0755,3251.5,3250.9,0.1661]
[1737666011678,3.07484,3252.2,3250.9,0.1661]
[1737666011977,0.50164652,3252.9,3250.9,0.1661]
[1737666011978,3.07466,3252.4,3250.9,0.1661]
[1737666012163,3.07428,3252.8,3251.2,0.55]
[1737666012473,0.1639828,3253.4,3250.8,3.0]
[1737666012474,6.14786,3253.2,3252.1,0.7762]
[1737666012677,3.07401,3253.1,3252.1,0.7762]
[1737666012903,0.1639828,3253.4,3252.1,0.7762]
[1737666013539,0.1639828,3253.4,3252.2,1.29206953]
[1737666013737,3.07323,3253.9,3253.4,0.7931]
[1737666013936,3.07153,3255.7,3253.4,0.7931]
[1737666013937,5.50946909,3255.5,3253.4,0.7931]
[1737666014155,3.07312,3254.1,3253.4,0.7931]
[1737666014451,3.07332,3253.9,3253.4,0.7931]
[1737666014656,3.07282,3254.4,3253.4,0.7931]
[1737666014991,3.07303,3254.2,3253.4,0.7931]
[1737666015139,3.07307,3254.1,3253.4,0.7931]
[1737666015335,3.07238,3254.8,3253.4,0.7931]
[1737666015535,3.07229,3254.9,3253.4,0.7931]
[1737666015536,3.07361,3253.5,3253.4,0.7931]
[1737666015883,3.07393,3253.2,3251.4,0.8058]
[1737666016051,3.07507,3252.0,3251.4,0.8058]
[1737666016779,3.07533,3251.7,3251.4,0.8058]
[1737666017085,0.8263,3253.4,3251.4,0.8058]
[1737666017252,3.07466,3252.4,3251.4,0.8058]
[1737666017439,3.07517,3251.9,3251.4,0.8058]
[1737666017647,3.07505,3252.0,3251.4,0.8058]
[1737666017835,3.07544,3251.6,3251.4,0.8058]
[1737666018182,3.0752,3251.9,3250.7,0.7982]
[1737666018183,3.0758,3251.2,3250.7,0.7982]
[1737666018481,3.07603,3251.0,3250.7,0.7982]
[1737666018784,3.07672,3250.3,3250.2,0.7982]
[1737666018935,3.07672,3250.3,3248.5,2.214]
[1737666018936,3.0765,3250.5,3250.0,0.7982]
[1737666019284,3.07543,3251.6,3250.0,0.7982]
[1737666019478,3.07515,3251.9,3250.3,0.55]
[1737666019639,3.07533,3251.7,3250.3,2.0]
[1737666019836,3.07462,3252.5,3250.7,0.55]